fUSD/lending_fUSD_20260408
["ID","MTS","AMOUNT","RATE_DAILY","PERIOD"]
[420103743,1775677851719,-155.623108,0.0001491,2]
[420103744,1775677851729,-155.623108,0.0001491,2]
[420103745,1775677851738,-151.0,0.0001491,2]
[420103746,1775677851748,-151.0,0.0001491,2]
[420103747,1775677851758,-883.72,0.00014932,2]
[420103748,1775677851768,-994.01934182,0.00014951,2]
[420103749,1775677851778,-588.73506502,0.00014961,2]
[420103750,1775677851787,-1189.65,0.00014988,2]
[420103751,1775677851797,-500.0,0.00014988,2]
[420103752,1775677851807,-300.0,0.00015,2]
[420103753,1775677851817,-160.0,0.00015,2]
[420103754,1775677851827,-1536.04360649,0.00015006,2]
[420103755,1775677851836,-24831.56772012,0.00015033,2]
[420103756,1775677851845,-1068.5,0.00015057,2]
[420103757,1775677851855,-524.53,0.00015068,2]
[420103758,1775677851865,-900.0,0.00015068,2]
[420103759,1775677851875,-213.120018,0.00015068,2]
[420103760,1775677851885,-213.120018,0.00015068,2]
[420103761,1775677851894,-213.120018,0.00015068,2]
[420103762,1775677851904,-213.120018,0.00015068,2]
[420103763,1775677851914,-2536.32,0.00015068,2]
[420103764,1775677851924,-800.91792691,0.00015068,2]
[420103765,1775677851934,-1816.0,0.00015073,2]
[420103766,1775677851943,-1000.0,0.00015086,2]
[420103767,1775677851953,-55566.61594827,0.00015122,2]
[420103768,1775677851962,-151.0,0.00015122,2]
[420103769,1775677851972,-151.0,0.00015122,2]
[420103770,1775677851982,-151.0,0.00015122,2]
[420103771,1775677851992,-151.0,0.00015122,2]
[420103772,1775677852001,-151.0,0.00015122,2]
[420103773,1775677852010,-241.856367,0.00015122,2]
[420103774,1775677852020,-151.0,0.00015122,2]
[420103775,1775677852030,-151.0,0.00015122,2]
[420103776,1775677852040,-151.0,0.00015122,2]
[420103777,1775677852050,-151.0,0.00015122,2]
[420103778,1775677852060,-151.0,0.00015122,2]
[420103779,1775677852070,-151.0,0.00015122,2]
[420103780,1775677852079,-151.0,0.00015122,2]
[420103781,1775677852088,-151.0,0.00015122,2]
[420103782,1775677852098,-151.0,0.00015122,2]
[420103783,1775677852108,-396.353508,0.00015154,7]
[420103784,1775677852117,-1000.0,0.00015155,2]
[420103785,1775677852127,-1000.0,0.00015165,2]
[420103786,1775677852136,-888.71981631,0.00015166,2]
[420103787,1775677852145,-6976.45084756,0.00015166,2]
[420103788,1775677852155,-150.0,0.00015174,2]
[420103789,1775677852165,-1900.0,0.00015178,2]
[420103790,1775677852175,-501.0,0.00015191,3]
[420103791,1775677852185,-150.0,0.00015193,2]
[420103792,1775677852194,-500.0,0.00015199,2]
[420103793,1775677852205,-500.0,0.00015199,2]
[420103794,1775677852215,-688.2,0.00015199,2]
[420103795,1775677852225,-500.0,0.00015199,2]
[420103796,1775677852235,-500.0,0.00015199,2]
[420103797,1775677852244,-1311.204454,0.000152,2]
[420103798,1775677852255,-264.9249,0.000152,2]
[420103799,1775677852265,-5000.0,0.000152,2]
[420103800,1775677852275,-5000.0,0.000152,2]
[420103801,1775677852285,-382.684518,0.000152,2]
[420103802,1775677852295,-382.684518,0.000152,2]
[420103803,1775677852305,-252.791544,0.000152,2]
[420103804,1775677852315,-382.684518,0.000152,2]
[420103805,1775677852325,-252.791544,0.000152,2]
[420103806,1775677852335,-151.0,0.000152,2]
[420103807,1775677852345,-151.0,0.000152,2]
[420103808,1775677852355,-382.684518,0.000152,2]
[420103809,1775677852365,-151.0,0.000152,2]
[420103810,1775677852375,-252.791544,0.000152,2]
[420103811,1775677852384,-151.0,0.000152,2]
[420103812,1775677852394,-892.21053,0.000152,2]
[420103813,1775677852403,-252.791544,0.000152,2]
[420103814,1775677852412,-241.925939,0.000152,2]
[420103815,1775677852422,-892.21053,0.000152,2]
[420103816,1775677852431,-892.21053,0.000152,2]
[420103817,1775677852440,-151.0,0.000152,2]
[420103818,1775677852451,-892.21053,0.000152,2]
[420103819,1775677852461,-264.356208,0.000152,2]
[420103820,1775677852470,-151.0,0.000152,2]
[420103821,1775677852481,-264.356208,0.000152,2]
[420103822,1775677852492,-151.0,0.000152,2]
[420103823,1775677852502,-195.251014,0.000152,2]
[420103824,1775677852512,-264.356208,0.000152,2]
[420103825,1775677852521,-783.271789,0.000152,2]
[420103826,1775677852530,-195.251014,0.000152,2]
[420103827,1775677852540,-264.356208,0.000152,2]
[420103828,1775677852550,-783.271789,0.000152,2]
[420103829,1775677852560,-195.251014,0.000152,2]
[420103830,1775677852570,-783.271789,0.000152,2]
[420103831,1775677852581,-195.251014,0.000152,2]
[420103832,1775677852591,-783.271789,0.000152,2]
[420103833,1775677852601,-1104.329926,0.000152,2]
[420103834,1775677852612,-1104.329926,0.000152,2]
[420103835,1775677852621,-1104.329926,0.000152,2]
[420103836,1775677852631,-1104.329926,0.000152,2]
[420103837,1775677852641,-151.0,0.000152,2]
[420103838,1775677852651,-151.0,0.000152,2]
[420103839,1775677852660,-151.0,0.000152,2]
[420103840,1775677852671,-317.449149,0.000152,2]
[420103841,1775677852681,-151.0,0.000152,2]
[420103842,1775677852690,-317.449149,0.000152,2]
[420103843,1775677852699,-386.728794,0.000152,2]
[420103844,1775677852709,-317.449149,0.000152,2]
[420103845,1775677852720,-386.728794,0.000152,2]
[420103846,1775677852731,-386.728794,0.000152,2]
[420103847,1775677852742,-317.449149,0.000152,2]
[420103848,1775677852752,-386.728794,0.000152,2]
[420103849,1775677852764,-1000.0,0.00015204,2]
[420103850,1775677852774,-1000.0,0.00015209,2]
[420103851,1775677852785,-1000.0,0.00015209,2]
[420103852,1775677852795,-174.07,0.00015227,2]
[420103853,1775677852806,-1000.0,0.00015235,2]
[420103854,1775677852816,-350.0,0.0001525,2]
[420103855,1775677852826,-1000.0,0.00015252,2]
[420103856,1775677852836,-1068.5,0.00015266,2]
[420103857,1775677852846,-1994.4,0.00015285,2]
[420103858,1775677852856,-994.01934182,0.00015297,2]
[420103859,1775677852865,-1000.0,0.00015303,2]
[420103860,1775677852875,-1372.65078494,0.0001531,2]
[420103861,1775677852886,-1000.0,0.00015314,2]
[420103862,1775677852896,-151.0,0.00015342,2]
[420103863,1775677852905,-151.0,0.00015342,2]
[420103864,1775677852916,-151.0,0.00015342,2]
[420103865,1775677852925,-163.226364,0.00015342,2]
[420103866,1775677852935,-151.0,0.00015342,2]
[420103867,1775677852945,-151.0,0.00015342,2]
[420103868,1775677852958,-151.0,0.00015342,2]
[420103869,1775677852969,-151.0,0.00015342,2]
[420103870,1775677852979,-151.0,0.00015342,2]
[420103871,1775677852988,-320.89115,0.00015342,2]
[420103872,1775677852998,-151.0,0.00015342,2]
[420103873,1775677853009,-151.0,0.00015342,2]
[420103874,1775677853020,-320.89115,0.00015342,2]
[420103875,1775677853031,-151.0,0.00015342,2]
[420103876,1775677853041,-320.89115,0.00015342,2]
[420103877,1775677853052,-320.89115,0.00015342,2]
[420103878,1775677853063,-151.0,0.00015342,2]
[420103879,1775677853073,-151.0,0.00015342,2]
[420103880,1775677853084,-151.0,0.00015342,2]
[420103881,1775677853094,-151.0,0.00015342,2]
[420103882,1775677853104,-151.0,0.00015342,2]
[420103883,1775677853115,-151.0,0.00015342,2]
[420103884,1775677853126,-220.2342,0.00015342,2]
[420103885,1775677853136,-220.2342,0.00015342,2]
[420103886,1775677853145,-220.2342,0.00015342,2]
[420103887,1775677853155,-220.2342,0.00015342,2]
[420103888,1775677853165,-151.0,0.00015342,2]
[420103889,1775677853176,-151.0,0.00015342,2]
[420103890,1775677853187,-151.0,0.00015342,2]
[420103891,1775677853197,-151.0,0.00015342,2]
[420103892,1775677853207,-151.0,0.00015342,2]
[420103893,1775677853218,-364.116362,0.00015342,2]
[420103894,1775677853227,-364.116362,0.00015342,2]
[420103895,1775677853238,-364.116362,0.00015342,2]
[420103896,1775677853248,-364.116362,0.00015342,2]
[420103897,1775677853257,-2000.0,0.00015342,2]
[420103898,1775677853267,-2000.0,0.00015342,2]
[420103899,1775677853278,-2000.0,0.00015342,2]
[420103900,1775677853288,-254.25810122,0.00015342,2]
[420103901,1775677853298,-2000.0,0.00015342,2]
[420103902,1775677853308,-2000.0,0.00015342,2]
[420103903,1775677853319,-2000.0,0.00015342,2]
[420103904,1775677853330,-197.87652131,0.00015342,2]
[420103905,1775677853341,-2000.0,0.00015342,2]
[420103906,1775677853352,-2000.0,0.00015342,2]
[420103907,1775677853362,-1573.0,0.0001536,2]
[420103908,1775677853373,-162.0,0.0001536,2]
[420103909,1775677853383,-1000.0,0.00015371,2]
[420103910,1775677853393,-1000.0,0.00015395,2]
[420103911,1775677853404,-4912.4379,0.00015399,2]
[420103912,1775677853414,-1000.0,0.00015428,2]
[420103913,1775677853425,-1347.0,0.00015432,2]
[420103914,1775677853435,-622.0,0.00015432,2]
[420103915,1775677853446,-1046.0,0.00015432,2]
[420103916,1775677853456,-3524.0,0.00015432,2]
[420103917,1775677853465,-1264.0,0.00015432,2]
[420103918,1775677853476,-1217.0,0.00015432,2]
[420103919,1775677853487,-926.0,0.00015432,2]
[420103920,1775677853497,-415.0,0.00015432,2]
[420103921,1775677853507,-6022.0,0.00015432,2]
[420103922,1775677853517,-1000.0,0.00015432,2]
[420103923,1775677853527,-153.17,0.00015433,2]
[420103924,1775677853537,-1816.0,0.00015436,2]
[420103925,1775677853548,-1000.0,0.00015449,2]
[420103926,1775677853559,-1000.0,0.0001545,2]
[420103927,1775677853569,-150.0,0.00015458,2]
[420103928,1775677853964,-150.0,0.00015467,2]
[420103929,1775677853975,-477.15533545,0.00015469,2]
[420103930,1775677853985,-9596.7,0.00015471,2]
[420103931,1775677853995,-153.17,0.00015472,2]
[420103932,1775677854005,-1000.0,0.00015473,2]
[420103933,1775677854015,-1068.5,0.00015474,2]
[420103934,1775677854025,-1000.0,0.0001548,2]
[420103935,1775677854035,-151.0,0.00015496,2]
[420103936,1775677854045,-151.0,0.00015496,2]
[420103937,1775677854055,-150.0,0.00015497,2]
[420103938,1775677854065,-2000.0,0.00015499,2]
[420103939,1775677854074,-2000.0,0.00015499,2]
[420103940,1775677854084,-2000.0,0.00015499,2]
[420103941,1775677854093,-2000.0,0.00015499,2]
[420103942,1775677854103,-2000.0,0.00015499,2]
[420103943,1775677854113,-2000.0,0.00015499,2]
[420103944,1775677854122,-2000.0,0.00015499,2]
[420103945,1775677854132,-2000.0,0.00015499,2]
[420103946,1775677854142,-2000.0,0.00015499,2]
[420103947,1775677854152,-2000.0,0.00015499,2]
[420103948,1775677854162,-1189.65,0.00015499,2]
[420103949,1775677854171,-1189.65,0.00015499,2]
[420103950,1775677854181,-1189.65,0.00015499,2]
[420103951,1775677854191,-1189.65,0.00015499,2]
[420103952,1775677854201,-1189.85,0.00015499,2]
[420103953,1775677854215,-408.73678453,0.00015499,2]
[420103954,1775677854225,-151.0,0.00015499,2]
[420103955,1775677854235,-284.576853,0.00015499,2]
[420103956,1775677854244,-151.0,0.00015499,2]
[420103957,1775677854255,-151.0,0.00015499,2]
[420103958,1775677854265,-151.0,0.00015499,2]
[420103959,1775677854275,-151.0,0.00015499,2]
[420103960,1775677854284,-151.0,0.00015499,2]
[420103961,1775677854294,-151.0,0.00015499,2]
[420103962,1775677854304,-151.0,0.00015499,2]
[420103963,1775677854313,-151.0,0.00015499,2]
[420103964,1775677854323,-151.0,0.00015499,2]
[420103965,1775677854333,-151.0,0.00015499,2]
[420103966,1775677854342,-151.0,0.00015499,2]
[420103967,1775677854352,-151.0,0.00015499,2]
[420103968,1775677854363,-151.0,0.00015499,2]
[420103969,1775677854373,-151.0,0.00015499,2]
[420103970,1775677854382,-151.0,0.00015499,2]
[420103971,1775677854392,-151.0,0.00015499,2]
[420103972,1775677854402,-151.0,0.00015499,2]
[420103973,1775677854412,-151.0,0.00015499,2]
[420103974,1775677854421,-151.0,0.00015499,2]
[420103975,1775677854431,-151.0,0.00015499,2]
[420103976,1775677854440,-151.114309,0.00015499,2]
[420103977,1775677854450,-151.0,0.00015499,2]
[420103978,1775677854460,-151.0,0.00015499,2]
[420103979,1775677854470,-151.0,0.00015499,2]
[420103980,1775677854481,-151.0,0.00015499,2]
[420103981,1775677854490,-151.0,0.00015499,2]
[420103982,1775677854500,-151.0,0.00015499,2]
[420103983,1775677854510,-151.0,0.00015499,2]
[420103984,1775677854520,-151.0,0.00015499,2]
[420103985,1775677854530,-151.0,0.00015499,2]
[420103986,1775677854540,-151.0,0.00015499,2]
[420103987,1775677854550,-151.0,0.00015499,2]
[420103988,1775677854560,-151.0,0.00015499,2]
[420103989,1775677854570,-151.0,0.00015499,2]
[420103990,1775677854580,-151.0,0.00015499,2]
[420103991,1775677854591,-151.0,0.00015499,2]
[420103992,1775677854601,-151.0,0.00015499,2]
[420103993,1775677854612,-151.0,0.00015499,2]
[420103994,1775677854622,-151.0,0.00015499,2]
[420103995,1775677854632,-151.0,0.00015499,2]
[420103996,1775677854642,-151.0,0.00015499,2]
[420103997,1775677854652,-151.0,0.00015499,2]
[420103998,1775677854662,-151.0,0.00015499,2]
[420103999,1775677854673,-151.0,0.00015499,2]
[420104000,1775677854683,-151.0,0.00015499,2]
[420104001,1775677854693,-151.0,0.00015499,2]
[420104002,1775677854703,-151.0,0.00015499,2]
[420104003,1775677854712,-151.0,0.00015499,2]
[420104004,1775677854723,-151.0,0.00015499,2]
[420104005,1775677854733,-151.0,0.00015499,2]
[420104006,1775677854744,-151.0,0.00015499,2]
[420104007,1775677854754,-187.096983,0.00015499,2]
[420104008,1775677854764,-151.0,0.00015499,2]
[420104009,1775677854774,-151.0,0.00015499,2]
[420104010,1775677854783,-151.0,0.00015499,2]
[420104011,1775677854793,-151.0,0.00015499,2]
[420104012,1775677854803,-151.0,0.00015499,2]
[420104013,1775677854813,-650.638087,0.00015499,2]
[420104014,1775677854822,-151.0,0.00015499,2]
[420104015,1775677854832,-650.638087,0.00015499,2]
[420104016,1775677854842,-252.458138,0.00015499,2]
[420104017,1775677854852,-151.0,0.00015499,2]
[420104018,1775677854861,-650.638087,0.00015499,2]
[420104019,1775677854871,-252.458138,0.00015499,2]
[420104020,1775677854881,-151.0,0.00015499,2]
[420104021,1775677854892,-151.0,0.00015499,2]
[420104022,1775677854901,-151.0,0.00015499,2]
[420104023,1775677854911,-151.0,0.00015499,2]
[420104024,1775677854921,-462.719602,0.00015499,2]
[420104025,1775677854931,-650.638087,0.00015499,2]
[420104026,1775677854941,-252.458138,0.00015499,2]
[420104027,1775677854951,-392.167974,0.00015499,2]
[420104028,1775677854961,-151.0,0.00015499,2]
[420104029,1775677854971,-151.0,0.00015499,2]
[420104030,1775677854980,-462.719602,0.00015499,2]
[420104031,1775677854990,-151.0,0.00015499,2]
[420104032,1775677854999,-252.458138,0.00015499,2]
[420104033,1775677855009,-392.167974,0.00015499,2]
[420104034,1775677855019,-151.0,0.00015499,2]
[420104035,1775677855028,-462.719602,0.00015499,2]
[420104036,1775677855038,-4521.204252,0.00015499,2]
[420104037,1775677855048,-392.167974,0.00015499,2]
[420104038,1775677855057,-151.0,0.00015499,2]
[420104039,1775677855067,-151.0,0.00015499,2]
[420104040,1775677855076,-151.0,0.00015499,2]
[420104041,1775677855085,-462.719602,0.00015499,2]
[420104042,1775677855095,-4521.204252,0.00015499,2]
[420104043,1775677855105,-392.167974,0.00015499,2]
[420104044,1775677855115,-810.871787,0.00015499,2]
[420104045,1775677855124,-151.0,0.00015499,2]
[420104046,1775677855133,-151.0,0.00015499,2]
[420104047,1775677855143,-4521.204252,0.00015499,2]
[420104048,1775677855152,-810.871787,0.00015499,2]
[420104049,1775677855162,-151.0,0.00015499,2]
[420104050,1775677855172,-4521.204252,0.00015499,2]
[420104051,1775677855182,-810.871787,0.00015499,2]
[420104052,1775677855191,-1033.902763,0.00015499,2]
[420104053,1775677855202,-323.326839,0.00015499,2]
[420104054,1775677855211,-151.0,0.00015499,2]
[420104055,1775677855221,-151.0,0.00015499,2]
[420104056,1775677855231,-810.871787,0.00015499,2]
[420104057,1775677855241,-1033.902763,0.00015499,2]
[420104058,1775677855250,-174.103894,0.00015499,2]
[420104059,1775677855260,-323.326839,0.00015499,2]
[420104060,1775677855270,-1033.902763,0.00015499,2]
[420104061,1775677855280,-174.103894,0.00015499,2]
[420104062,1775677855290,-663.858593,0.00015499,2]
[420104063,1775677855299,-323.326839,0.00015499,2]
[420104064,1775677855309,-1033.902763,0.00015499,2]
[420104065,1775677855319,-174.103894,0.00015499,2]
[420104066,1775677855328,-663.858593,0.00015499,2]
[420104067,1775677855337,-323.326839,0.00015499,2]
[420104068,1775677855347,-174.103894,0.00015499,2]
[420104069,1775677855356,-663.858593,0.00015499,2]
[420104070,1775677855366,-151.0,0.00015499,2]
[420104071,1775677855377,-663.858593,0.00015499,2]
[420104072,1775677855387,-151.0,0.00015499,2]
[420104073,1775677855397,-151.0,0.00015499,2]
[420104074,1775677855408,-151.0,0.00015499,2]
[420104075,1775677855418,-151.646467,0.00015499,2]
[420104076,1775677855427,-272.954213,0.00015499,2]
[420104077,1775677855437,-151.0,0.00015499,2]
[420104078,1775677855447,-153.16,0.0001551,2]
[420104079,1775677855457,-150.0,0.00015511,2]
[420104080,1775677855468,-4373.0,0.00015514,2]
[420104081,1775677855479,-156.8971398,0.00015539,2]
[420104082,1775677855488,-150.0,0.00015543,2]
[420104083,1775677855497,-1816.0,0.00015548,2]
[420104084,1775677855507,-1592.87721993,0.00015554,2]
[420104085,1775677855518,-4373.0,0.00015581,2]
[420104086,1775677855528,-150.0,0.00015584,2]
[420104087,1775677855538,-150.0,0.00015588,2]
[420104088,1775677855547,-350.0,0.00015617,2]
[420104089,1775677855557,-1005.98065818,0.00015621,2]
[420104090,1775677855566,-1350.0,0.00015621,2]
[420104091,1775677855576,-1350.0,0.00015621,2]
[420104092,1775677855586,-1350.0,0.00015621,2]
[420104093,1775677855596,-1350.0,0.00015621,2]
[420104094,1775677855605,-1350.0,0.00015621,2]
[420104095,1775677855615,-1350.0,0.00015621,2]
[420104096,1775677855624,-1350.0,0.00015621,2]
[420104097,1775677855633,-1350.0,0.00015621,2]
[420104098,1775677855643,-1350.0,0.00015621,2]
[420104099,1775677855652,-978.0,0.00015621,2]
[420104100,1775677855662,-1816.0,0.0001563,2]
[420104101,1775677855672,-150.0,0.00015655,2]
[420104102,1775677855682,-9035.0,0.00015659,2]
[420104103,1775677855692,-963.0,0.00015663,2]
[420104104,1775677855703,-4373.0,0.00015675,2]
[420104105,1775677855713,-3727.97775672,0.0001568,2]
[420104106,1775677855722,-162.0,0.0001568,2]
[420104107,1775677855732,-1068.5,0.00015683,2]
[420104108,1775677855742,-500.0,0.00015699,2]
[420104109,1775677855752,-500.0,0.00015699,2]
[420104110,1775677855761,-688.2,0.00015699,2]
[420104111,1775677855771,-500.0,0.00015699,2]
[420104112,1775677855781,-500.0,0.00015699,2]
[420104113,1775677855791,-1000.0,0.00015699,2]
[420104114,1775677855802,-1000.0,0.000157,2]
[420104115,1775677855812,-4700.0,0.000157,5]
[420104116,1775677855822,-1000.0,0.00015703,2]
[420104117,1775677855832,-1000.0,0.00015705,2]
[420104118,1775677855842,-350.0,0.00015707,3]
[420104119,1775677855853,-562.38643831,0.00015709,2]
[420104120,1775677855862,-500.0,0.00015709,2]
[420104121,1775677855873,-688.2,0.00015709,2]
[420104122,1775677855882,-688.2,0.00015709,2]
[420104123,1775677855892,-688.2,0.00015709,2]
[420104124,1775677855902,-688.2,0.00015709,2]
[420104125,1775677855911,-688.2,0.00015709,2]
[420104126,1775677855922,-688.2,0.00015709,2]
[420104127,1775677855932,-688.2,0.00015709,2]
[420104128,1775677855942,-688.2,0.00015709,2]
[420104129,1775677855953,-688.2,0.00015709,2]
[420104130,1775677855969,-500.0,0.00015709,2]
[420104131,1775677855979,-500.0,0.00015709,2]
[420104132,1775677855989,-500.0,0.00015709,2]
[420104133,1775677855999,-433.12,0.00015709,2]
[420104134,1775677856009,-158.417593,0.00015709,2]
[420104135,1775677856019,-151.0,0.00015709,2]
[420104136,1775677856028,-158.417593,0.00015709,2]
[420104137,1775677856037,-158.417593,0.00015709,2]
[420104138,1775677856046,-153.894075,0.00015709,2]
[420104139,1775677856056,-153.894075,0.00015709,2]
[420104140,1775677856065,-244.113734,0.00015709,2]
[420104141,1775677856074,-158.417593,0.00015709,2]
[420104142,1775677856084,-244.113734,0.00015709,2]
[420104143,1775677856093,-153.894075,0.00015709,2]
[420104144,1775677856103,-151.0,0.00015709,2]
[420104145,1775677856112,-160.402454,0.00015709,2]
[420104146,1775677856121,-244.113734,0.00015709,2]
[420104147,1775677856130,-153.894075,0.00015709,2]
[420104148,1775677856140,-244.113734,0.00015709,2]
[420104149,1775677856149,-151.0,0.00015709,2]
[420104150,1775677856159,-151.0,0.00015709,2]
[420104151,1775677856169,-286.5314,0.00015709,2]
[420104152,1775677856178,-151.0,0.00015709,2]
[420104153,1775677856187,-151.0,0.00015709,2]
[420104154,1775677856197,-151.0,0.00015709,2]
[420104155,1775677856206,-151.0,0.00015709,2]
[420104156,1775677856216,-486.845671,0.00015709,2]
[420104157,1775677856225,-486.845671,0.00015709,2]
[420104158,1775677856235,-486.845671,0.00015709,2]
[420104159,1775677856245,-486.845671,0.00015709,2]
[420104160,1775677856254,-151.0,0.00015709,2]
[420104161,1775677856263,-547.090441,0.00015709,2]
[420104162,1775677856272,-151.0,0.00015709,2]
[420104163,1775677856282,-441.094837,0.00015709,2]
[420104164,1775677856291,-547.090441,0.00015709,2]
[420104165,1775677856300,-441.094837,0.00015709,2]
[420104166,1775677856309,-547.090441,0.00015709,2]
[420104167,1775677856318,-441.094837,0.00015709,2]
[420104168,1775677856328,-547.090441,0.00015709,2]
[420104169,1775677856501,-441.094837,0.00015709,2]
[420104170,1775677856512,-154.271563,0.00015709,2]
[420104171,1775677856521,-151.0,0.00015709,2]
[420104172,1775677856530,-231.247799,0.00015709,2]
[420104173,1775677856539,-500.0,0.00015709,2]
[420104174,1775677856548,-500.0,0.00015709,2]
[420104175,1775677856558,-500.0,0.00015709,2]
[420104176,1775677856567,-500.0,0.00015709,2]
[420104177,1775677856576,-246.96258362,0.00015709,2]
[420104178,1775677856585,-2000.0,0.00015709,2]
[420104179,1775677856595,-2000.0,0.00015709,2]
[420104180,1775677856604,-2000.0,0.00015709,2]
[420104181,1775677856614,-2000.0,0.00015709,2]
[420104182,1775677856623,-2000.0,0.00015709,2]
[420104183,1775677856632,-2000.0,0.00015709,2]
[420104184,1775677856641,-2000.0,0.00015709,2]
[420104185,1775677856651,-2000.0,0.00015709,2]
[420104186,1775677856660,-2000.0,0.00015709,2]
[420104187,1775677856668,-2000.0,0.00015709,2]
[420104188,1775677856678,-150.0,0.00015715,2]
[420104189,1775677856689,-1000.0,0.00015715,2]
[420104190,1775677856699,-1000.0,0.00015719,2]
[420104191,1775677856708,-500.0,0.00015731,2]
[420104192,1775677856718,-1000.0,0.00015745,2]
[420104193,1775677856728,-2536.32,0.00015753,2]
[420104194,1775677856738,-1000.0,0.00015758,2]
[420104195,1775677856748,-483.94,0.00015778,2]
[420104196,1775677856758,-483.94,0.00015778,2]
[420104197,1775677856767,-483.94,0.00015778,2]
[420104198,1775677856777,-483.94,0.00015778,2]
[420104199,1775677856786,-483.94,0.00015778,2]
[420104200,1775677856796,-4373.0,0.00015781,2]
[420104201,1775677856805,-1153.7222366,0.00015794,2]
[420104202,1775677856815,-257.4302274,0.00015794,2]
[420104203,1775677856824,-1527.0,0.00015798,2]
[420104204,1775677856834,-152.0,0.00015798,2]
[420104205,1775677856843,-1527.0,0.00015798,2]
[420104206,1775677856852,-154.22301552,0.00015798,2]
[420104207,1775677856861,-1552.49500782,0.00015798,2]
[420104208,1775677856870,-24831.56772012,0.000158,2]
[420104209,1775677856879,-4700.0,0.000158,5]
[420104210,1775677856888,-151.0,0.000158,2]
[420104211,1775677856898,-280.775661,0.000158,2]
[420104212,1775677856911,-216.766191,0.000158,2]
[420104213,1775677856920,-151.0,0.000158,2]
[420104214,1775677856929,-151.0,0.000158,2]
[420104215,1775677856938,-151.0,0.000158,2]
[420104216,1775677856947,-151.0,0.000158,2]
[420104217,1775677856957,-151.0,0.000158,2]
[420104218,1775677856967,-151.0,0.000158,2]
[420104219,1775677856977,-151.0,0.000158,2]
[420104220,1775677856986,-151.0,0.000158,2]
[420104221,1775677856995,-151.0,0.000158,2]
[420104222,1775677857005,-2000.0,0.000158,2]
[420104223,1775677857015,-4373.0,0.00015826,2]
[420104224,1775677857024,-4373.0,0.00015828,2]
[420104225,1775677857033,-1000.0,0.00015836,2]
[420104226,1775677857044,-1864.45806,0.0001584,2]
[420104227,1775677857053,-1864.45806,0.0001584,2]
[420104228,1775677857062,-1864.45807,0.0001585,2]
[420104229,1775677857072,-4373.0,0.00015855,2]
[420104230,1775677857081,-4373.0,0.0001586,2]
[420104231,1775677857089,-163.8001,0.0001586,2]
[420104232,1775677857099,-157.307483,0.00015862,2]
[420104233,1775677857108,-157.307483,0.00015862,2]
[420104234,1775677857117,-157.307483,0.00015862,2]
[420104235,1775677857127,-1263.081067,0.00015862,2]
[420104236,1775677857137,-1263.081067,0.00015862,2]
[420104237,1775677857146,-157.307483,0.00015862,2]
[420104238,1775677857155,-1263.081067,0.00015862,2]
[420104239,1775677857166,-1263.081067,0.00015862,2]
[420104240,1775677857175,-1316.005703,0.00015862,2]
[420104241,1775677857184,-151.0,0.00015862,2]
[420104242,1775677857195,-151.0,0.00015862,2]